bitfinex/quotes_ETHUSD_20250814
["timestamp","ask_amount","ask_price","bid_price","bid_amount"]
[1755140475524,14.5,4739.8,4738.7,0.0851]
[1755140475723,14.5,4739.8,4738.8,0.3437]
[1755140476261,14.5,4739.8,4738.9,0.0851]
[1755140476540,14.5,4739.8,4739.0,0.3437]
[1755140476842,14.5,4739.8,4739.1,3.239]
[1755140477038,14.5,4739.8,4739.2,0.36678]
[1755140477209,14.5,4739.8,4739.2,0.71048]
[1755140477648,0.9333,4741.5,4739.3,0.3437]
[1755140477846,0.9333,4741.5,4739.4,0.22000714]
[1755140478140,14.5,4740.6,4739.4,0.30510714]
[1755140478342,14.5,4740.6,4739.5,0.4288]
[1755140478847,14.5,4740.6,4739.6,0.0851]
[1755140479035,14.5,4740.6,4739.7,3.238]
[1755140479334,0.4982,4742.1,4739.8,0.79558]
[1755140479526,0.4982,4742.1,4739.9,0.4288]
[1755140479848,14.9351,4742.0,4739.9,0.4288]
[1755140480147,0.9333,4741.9,4740.0,0.0851]
[1755140480346,0.9333,4741.9,4740.1,0.56370714]
[1755140480547,0.9333,4741.9,4740.2,0.3437]
[1755140480743,14.5,4741.8,4740.2,0.3437]
[1755140481047,14.9351,4741.8,4740.2,0.3437]
[1755140481945,0.4351,4741.8,4740.2,0.3437]
[1755140482137,0.4982,4741.9,4740.3,0.0851]
[1755140482334,0.4803,4742.4,4740.4,0.3437]
[1755140482537,14.5,4742.3,4740.5,0.0851]
[1755140482741,14.5,4742.3,4740.6,8.6367]
[1755140482942,14.5,4742.3,4740.7,0.79558]
[1755140483344,14.5,4742.3,4740.8,0.4288]
[1755140483758,14.5,4742.3,4740.8,0.3437]
[1755140484063,14.5,4742.3,4740.9,0.0851]
[1755140484356,0.4803,4743.0,4741.0,0.3437]
[1755140484565,0.4803,4743.0,4741.1,0.0851]
[1755140484760,14.9381,4742.9,4741.2,3.238]
[1755140484930,14.5,4742.9,4741.2,3.238]
[1755140485131,0.9184,4742.8,4741.3,0.22000714]
[1755140485777,15.4184,4742.7,4741.2,3.238]
[1755140485930,14.5,4742.7,4741.2,3.238]
[1755140486130,0.9184,4742.6,4741.2,3.238]
[1755140486341,0.9184,4742.6,4741.3,0.3437]
[1755140486743,14.5,4742.3,4741.3,0.3437]
[1755140487055,14.5,4742.3,4741.4,0.36668]
[1755140489138,14.5,4742.3,4741.5,0.3437]
[1755140489538,0.4381,4743.1,4741.5,0.3437]
[1755140490261,14.5,4743.0,4741.5,0.3437]
[1755140491647,0.4803,4742.9,4741.5,0.3437]
[1755140491854,0.9184,4742.9,4741.6,3.45710714]
[1755140492238,14.5,4742.8,4741.7,0.3437]
[1755140492969,0.4803,4743.4,4741.7,0.3437]
[1755140493172,0.4381,4743.3,4741.7,0.3437]
[1755140493470,14.9803,4743.2,4741.7,0.3437]
[1755140493650,14.9803,4743.2,4741.8,5.41968]
[1755140493846,0.9184,4743.1,4741.8,5.41968]
[1755140494355,0.9184,4743.0,4741.8,5.41968]
[1755140494541,0.9184,4742.9,4741.8,5.41968]
[1755140494742,0.9184,4742.8,4741.9,0.22010714]
[1755140494966,0.9184,4742.7,4741.9,0.22010714]
[1755140495352,0.9184,4742.6,4741.8,5.053]
[1755140495547,0.9184,4742.5,4742.0,3.236]
[1755140495755,0.9184,4742.4,4742.0,3.236]
[1755140496069,0.9184,4742.3,4742.0,3.236]
[1755140496380,0.9184,4742.2,4742.0,3.236]
[1755140496584,0.9184,4742.1,4742.0,3.236]
[1755140498292,0.9184,4742.1,4741.8,5.053]
[1755140498589,2.10112725,4743.8,4741.8,5.053]
[1755140498590,2.10112725,4743.8,4742.0,3.236]
[1755140499092,0.9184,4743.7,4742.0,3.236]
[1755140499293,2.10112725,4743.6,4742.0,3.236]
[1755140499588,0.9184,4743.5,4742.0,3.236]
[1755140499995,0.9184,4743.4,4742.0,3.236]
[1755140500174,0.9184,4743.3,4742.0,3.236]
[1755140500370,0.9184,4743.2,4742.0,3.236]
[1755140500576,2.10112725,4743.6,4742.0,3.236]
[1755140500896,18.31284138,4743.1,4742.0,3.236]
[1755140501069,0.9184,4743.0,4742.0,3.236]
[1755140501468,0.9184,4742.9,4742.0,3.236]
[1755140501664,0.9184,4742.8,4742.0,3.236]
[1755140501985,0.9184,4742.7,4742.0,3.236]
[1755140502189,17.39444138,4743.1,4742.0,3.236]
[1755140502393,0.9184,4742.6,4742.0,3.236]
[1755140502598,1.73944414,4743.0,4742.0,3.236]
[1755140502773,0.9184,4742.5,4742.0,3.236]
[1755140502975,1.73944414,4743.0,4742.0,3.236]
[1755140503295,0.9184,4742.4,4742.0,3.236]
[1755140503466,0.9184,4742.3,4742.0,3.236]
[1755140503667,0.4803,4742.2,4742.0,3.236]
[1755140503986,0.9184,4742.2,4742.0,3.236]
[1755140504187,0.4803,4742.1,4742.0,3.236]
[1755140504376,0.9184,4742.1,4742.0,3.236]
[1755140504694,0.4803,4742.1,4742.0,3.236]
[1755140504998,0.9184,4742.1,4742.0,3.236]
[1755140505673,0.4381,4742.4,4742.0,3.236]
[1755140505977,0.9184,4742.3,4742.0,3.236]
[1755140506968,0.9184,4742.2,4742.0,3.236]
[1755140507169,0.4381,4742.2,4742.0,3.236]
[1755140507370,0.9184,4742.2,4742.0,3.236]
[1755140507572,0.4803,4743.1,4742.0,3.236]
[1755140507798,0.4381,4743.0,4742.0,3.236]
[1755140508097,0.4803,4742.9,4742.0,3.236]
[1755140508304,0.4803,4742.9,4741.8,5.053]
[1755140508305,17.39444138,4742.6,4741.8,5.053]
[1755140508481,0.31475416,4742.5,4742.1,3.235]
[1755140508675,1.23315416,4742.5,4742.1,3.235]
[1755140509199,0.4803,4742.4,4742.1,3.235]
[1755140509373,0.9184,4742.4,4742.1,3.235]
[1755140509774,0.9184,4742.3,4742.1,3.235]
[1755140509994,0.9184,4742.2,4741.8,5.053]
[1755140510196,0.9184,4742.1,4741.9,3.235]
[1755140510401,0.31475416,4742.5,4741.9,3.235]
[1755140510402,0.9184,4742.0,4741.9,3.235]
[1755140510604,0.9184,4742.0,4741.8,5.053]
[1755140510811,0.9184,4741.9,4740.9,4.29]
[1755140511008,17.39444138,4742.3,4741.0,7.525]
[1755140511009,0.9184,4741.8,4741.0,7.525]
[1755140511219,0.9116,4741.7,4741.1,3.235]
[1755140511375,17.39444138,4742.3,4741.1,3.235]
[1755140511575,2.65104414,4742.2,4741.1,3.235]
[1755140512075,0.9116,4742.1,4741.1,3.235]
[1755140512472,0.9116,4742.0,4741.1,3.235]
[1755140512808,0.9116,4741.9,4741.1,3.235]
[1755140513880,0.9116,4741.8,4741.1,3.235]
[1755140514100,0.9116,4741.7,4741.1,3.235]
[1755140514402,0.9116,4741.6,4741.1,3.235]
[1755140514583,0.9116,4741.5,4741.1,3.235]
[1755140514783,0.9116,4741.4,4741.1,3.235]
[1755140514986,0.4552,4741.7,4741.1,3.235]
[1755140515417,0.4564,4741.6,4741.1,3.235]
[1755140515620,0.26510441,4741.8,4740.8,5.053]
[1755140515621,1.02927044,4741.5,4740.8,5.053]
[1755140515799,0.9116,4741.4,4740.9,3.235]
[1755140515999,17.65954579,4741.8,4740.9,3.235]
[1755140516193,0.9116,4741.3,4740.9,3.235]
[1755140516506,17.65954579,4741.8,4740.9,3.235]
[1755140516507,0.9116,4741.2,4740.9,3.235]
[1755140516803,3.235,4743.1,4740.9,3.235]
[1755140516804,0.9116,4741.1,4740.9,3.235]
[1755140517001,0.9116,4741.0,4740.9,3.235]
[1755140519415,2.71881187,4741.0,4739.4,0.3437]
[1755140519721,0.9116,4740.9,4739.8,5.054]
[1755140519879,0.9116,4740.9,4739.9,3.235]
[1755140520081,0.4552,4740.8,4739.9,3.235]
[1755140521806,0.15774307,4742.8,4739.9,3.235]
[1755140521807,0.4552,4741.4,4739.9,3.235]
[1755140522005,0.4552,4741.4,4740.0,0.3437]
[1755140522314,0.4552,4742.1,4740.0,0.3437]
[1755140522488,17.55218445,4742.8,4740.1,0.0851]
[1755140522679,0.9116,4742.3,4740.1,0.0851]
[1755140522887,0.4564,4742.6,4740.2,0.3437]
[1755140523209,0.4564,4742.6,4740.3,3.3201]
[1755140523429,0.9116,4742.6,4740.4,0.4288]
[1755140523706,0.9116,4742.6,4740.5,0.36638]
[1755140523902,0.9116,4743.0,4740.5,0.45148]
[1755140524092,0.4564,4743.0,4740.6,0.4288]
[1755140524281,1.23666812,4744.6,4740.7,3.54050714]
[1755140524282,0.4552,4743.3,4740.7,3.54050714]
[1755140524481,0.4552,4743.3,4740.8,0.4288]
[1755140524913,0.4552,4743.3,4740.9,0.0851]
[1755140525277,0.4552,4743.3,4741.0,0.3437]
[1755140525481,0.4552,4743.3,4741.1,0.0851]
[1755140525698,0.4552,4743.3,4741.2,3.235]
[1755140525896,0.4564,4743.2,4741.3,0.79518]
[1755140526711,0.4552,4743.1,4741.3,0.79518]
[1755140527084,0.4564,4743.0,4741.3,0.79518]
[1755140527410,0.4552,4742.9,4741.3,0.79518]
[1755140527792,0.4564,4742.8,4741.4,3.234]
[1755140528109,0.4564,4742.8,4741.5,3.79810714]
[1755140528410,0.4564,4742.8,4741.6,3.5777]
[1755140528609,0.4552,4743.1,4741.6,3.5777]
[1755140528906,0.4564,4743.2,4741.6,3.5777]
[1755140529113,0.9116,4743.2,4741.7,0.36638]
[1755140529505,0.9116,4743.2,4741.8,0.3437]
[1755140530315,0.4552,4743.1,4741.8,0.3437]
[1755140530520,0.9116,4743.1,4741.7,0.36638]
[1755140530890,17.39444138,4743.4,4741.7,0.36638]
[1755140531217,17.39444138,4742.9,4741.6,3.234]
[1755140531447,0.9116,4742.8,4741.6,7.524]
[1755140531914,0.9116,4742.7,4741.7,3.233]
[1755140532216,0.9116,4742.7,4741.8,3.233]
[1755140532421,2.74220414,4742.6,4741.8,3.233]
[1755140532595,1.83060414,4742.6,4741.8,3.233]
[1755140532807,0.9116,4742.5,4741.8,3.233]
[1755140533219,0.9116,4742.4,4741.8,3.233]
[1755140533420,0.4552,4742.3,4741.8,3.233]
[1755140533799,0.4564,4742.2,4741.8,3.233]
[1755140533998,0.9116,4742.1,4741.9,3.233]
[1755140534301,17.39444138,4742.4,4741.2,5.053]
[1755140534302,0.9116,4742.0,4741.2,5.053]
[1755140534518,0.9116,4742.0,4741.3,3.233]
[1755140539436,0.4552,4742.9,4741.3,3.233]
[1755140539633,0.56575958,4744.0,4741.3,3.233]
[1755140539634,0.9116,4742.5,4741.3,3.233]
[1755140539931,0.4552,4742.4,4741.3,3.233]
[1755140540144,0.9116,4742.4,4741.3,3.233]
[1755140540511,0.19647981,4742.8,4741.3,3.233]
[1755140540830,0.9116,4742.3,4741.3,3.233]
[1755140541036,0.9116,4742.3,4741.4,3.233]
[1755140541218,0.9275,4742.2,4741.4,3.233]
[1755140541420,0.9275,4742.1,4741.5,3.233]
[1755140541745,0.9275,4742.0,4741.5,3.233]
[1755140541916,0.9275,4741.9,4741.5,3.233]
[1755140542238,0.9275,4743.1,4741.5,3.5767]
[1755140542407,0.9275,4743.1,4741.6,0.3437]
[1755140542607,0.56575958,4744.1,4741.6,0.3437]
[1755140542608,1.03989888,4743.0,4741.6,0.3437]
[1755140543236,1.02989888,4743.0,4741.6,0.3437]
[1755140543423,0.4705,4742.9,4741.7,4.29]
[1755140543961,0.9275,4742.9,4741.7,4.29]
[1755140544348,0.10239888,4743.0,4741.8,3.233]
[1755140544349,17.39444138,4742.7,4741.8,3.233]
[1755140544640,0.9275,4742.6,4741.8,3.233]
[1755140545135,17.39444138,4742.7,4741.8,3.233]
[1755140545136,0.9275,4742.5,4741.8,3.233]
[1755140545433,0.9275,4742.5,4741.7,4.29]
[1755140545434,0.9275,4742.4,4741.7,4.29]
[1755140545626,0.9275,4742.4,4741.8,3.233]
[1755140545827,0.10334087,4744.6,4741.8,3.233]
[1755140545828,0.457,4743.2,4741.8,3.233]
[1755140546033,0.4705,4743.1,4741.8,3.233]
[1755140546349,0.457,4743.0,4741.8,3.233]
[1755140546512,0.4705,4742.9,4741.3,0.3437]
[1755140546820,0.457,4742.8,4741.4,3.233]
[1755140547009,0.4705,4742.7,4741.5,3.233]
[1755140547211,0.457,4742.6,4741.5,3.233]
[1755140547428,0.4705,4742.5,4741.5,3.233]
[1755140548047,0.457,4742.4,4741.5,3.233]
[1755140548229,0.4705,4742.3,4741.5,3.233]
[1755140549431,0.457,4742.9,4741.5,3.5767]
[1755140550763,0.4705,4743.0,4741.5,3.5767]
[1755140551070,0.457,4743.3,4741.6,0.4288]
[1755140551270,0.4705,4743.2,4741.6,0.4288]
[1755140551766,0.9275,4743.2,4741.2,5.053]
[1755140551970,0.9275,4743.2,4741.3,3.232]
[1755140552170,0.9275,4743.1,4741.3,3.232]
[1755140552367,0.9275,4743.0,4741.2,5.053]
[1755140552577,0.9275,4742.9,4741.3,3.232]
[1755140552958,17.39444138,4743.2,4741.3,3.232]
[1755140553161,0.9275,4742.8,4741.3,3.232]
[1755140553350,0.9275,4742.7,4741.3,3.232]
[1755140553548,0.4705,4742.6,4741.3,3.232]
[1755140553771,0.9275,4742.6,4741.3,3.232]
[1755140554249,1.73944414,4743.1,4741.3,3.232]
[1755140554573,0.9275,4742.5,4741.3,3.232]
[1755140556684,0.9275,4742.5,4741.3,3.5757]
[1755140557188,0.4705,4743.3,4741.4,0.4288]
[1755140557482,0.4705,4743.3,4741.5,0.0851]
[1755140557890,0.457,4743.2,4741.6,0.3437]
[1755140558192,0.457,4743.2,4741.7,0.36608]
[1755140559483,0.4705,4743.1,4741.7,0.36608]
[1755140559685,0.457,4743.0,4741.7,0.36608]
[1755140559898,0.4705,4742.9,4741.7,0.36608]
[1755140560602,0.4705,4742.9,4741.2,5.053]
[1755140560603,0.457,4742.8,4741.2,5.053]
[1755140560896,0.4705,4742.7,4741.3,3.232]
[1755140561281,0.457,4742.6,4741.3,3.232]
[1755140561588,0.4705,4742.5,4741.3,3.232]
[1755140564708,0.457,4742.6,4741.3,3.5757]
[1755140565091,0.4705,4742.5,4741.3,3.5757]
[1755140565839,0.4705,4742.5,4741.4,3.231]
[1755140566121,0.457,4742.4,4741.4,3.231]
[1755140566486,0.4705,4742.3,4741.4,3.231]
[1755140567116,0.457,4742.2,4741.4,3.231]
[1755140567304,0.4705,4742.1,4741.5,3.231]
[1755140567916,0.457,4742.0,4741.5,3.231]
[1755140568122,17.39444138,4742.6,4741.5,3.231]
[1755140568317,1.22649357,4742.5,4741.5,3.231]
[1755140568688,0.9275,4742.4,4741.5,3.231]
[1755140569093,0.9275,4742.3,4741.5,3.231]
[1755140569318,14.5,4741.9,4741.5,3.231]
[1755140569903,0.9275,4741.8,4741.5,3.231]
[1755140570304,0.457,4741.7,4741.5,3.231]
[1755140570901,0.4705,4741.8,4741.5,3.231]
[1755140571107,14.5,4741.9,4741.5,3.231]
[1755140571421,0.29899357,4742.5,4741.2,5.053]
[1755140571724,0.9325,4741.8,4741.3,3.231]
[1755140572020,0.75282251,4743.4,4739.6,1.49005982]
[1755140572021,14.5,4741.4,4739.6,1.49005982]
[1755140572222,17.39444138,4740.8,4739.7,3.231]
[1755140572419,17.39444138,4740.8,4739.8,3.231]
[1755140572621,0.9325,4740.7,4739.5,5.053]
[1755140572829,14.5,4739.9,4739.6,3.231]
[1755140573252,15.4325,4739.9,4739.6,3.231]
[1755140573704,0.4643,4739.8,4739.6,3.231]
[1755140573906,0.9325,4739.8,4739.6,3.231]
[1755140575728,0.4643,4739.8,4739.6,3.231]
[1755140575914,0.4682,4739.8,4739.6,3.231]
[1755140576113,0.10444595,4741.0,4739.5,5.053]
[1755140576335,0.9325,4739.7,4739.6,3.231]
[1755140576630,15.4325,4739.7,4739.6,3.231]
[1755140577919,15.4325,4739.7,4739.5,5.053]
[1755140578143,14.5,4739.7,4739.6,3.231]
[1755140578832,15.4325,4739.7,4739.6,3.231]
[1755140579315,15.4325,4739.7,4738.4,0.3437]
[1755140579510,15.4325,4739.7,4738.5,8.286]
[1755140580305,15.4325,4739.7,4738.5,5.055]
[1755140580505,14.5,4739.7,4738.6,3.5747]
[1755140581238,14.5,4739.7,4738.7,0.4288]
[1755140582242,14.5,4739.7,4738.5,5.055]
[1755140582414,2.3825,4739.6,4738.6,3.231]
[1755140582609,2.3825,4739.6,4738.7,3.231]
[1755140582809,0.9325,4739.5,4738.7,3.231]
[1755140583212,0.9325,4739.4,4738.8,3.231]
[1755140583817,2.15255,4739.4,4738.8,3.231]
[1755140584033,0.4682,4739.3,4738.8,3.231]
[1755140584219,0.9325,4739.3,4738.8,3.231]
[1755140584427,0.9325,4739.2,4738.8,3.231]
[1755140584625,0.9325,4739.1,4738.8,3.231]
[1755140584914,0.4643,4739.1,4738.8,3.231]
[1755140585108,2.15645,4739.4,4738.8,3.231]
[1755140585336,0.4643,4739.5,4738.8,3.231]
[1755140585540,0.4682,4739.4,4738.8,3.231]
[1755140585728,14.5,4739.0,4738.8,3.231]
[1755140588169,0.9325,4740.0,4738.8,3.231]
[1755140588467,0.9325,4739.9,4738.8,3.231]
[1755140588673,15.4325,4739.8,4738.9,3.232]
[1755140588872,0.9325,4739.7,4739.0,3.232]
[1755140589444,0.32868335,4741.0,4739.0,3.232]
[1755140589445,0.4682,4740.2,4739.0,3.232]
[1755140589641,14.5,4739.6,4739.0,3.5757]
[1755140590370,14.5,4739.6,4739.1,0.4288]
[1755140590571,14.5,4739.6,4739.0,3.232]
[1755140591072,0.9325,4740.2,4738.7,0.3437]
[1755140591281,0.9325,4740.2,4738.8,3.232]
[1755140591448,14.5,4740.1,4738.8,3.232]
[1755140592576,14.5,4740.1,4738.9,0.3437]
[1755140593256,14.5,4740.1,4739.0,0.0851]
[1755140593451,38.44892045,4742.8,4739.1,0.3437]
[1755140593452,0.4682,4741.4,4739.1,0.3437]
[1755140593698,0.4682,4741.4,4739.2,3.3171]
[1755140593855,0.4643,4741.5,4739.3,0.3437]
[1755140594048,14.5,4741.3,4739.3,0.4288]
[1755140594371,14.5,4741.3,4739.4,0.0851]
[1755140594543,14.5,4741.3,4739.5,0.3437]
[1755140594742,14.5,4741.3,4739.6,0.45118]
[1755140594946,14.5,4741.3,4739.7,3.5747]
[1755140595172,14.5,4741.3,4739.8,0.3437]
[1755140595343,14.5,4741.3,4739.8,0.4288]
[1755140595549,14.5,4741.3,4739.9,0.0851]
[1755140595744,14.5,4741.3,4740.0,0.57440714]
[1755140596485,14.5,4741.3,4740.0,0.23070714]
[1755140596769,14.5,4741.3,4740.1,0.3437]
[1755140599673,0.4682,4742.0,4740.2,0.0851]
[1755140600055,14.5,4741.9,4740.3,0.3437]
[1755140600362,14.5,4741.9,4740.3,4.6337]
[1755140600564,0.9325,4741.8,4740.4,0.36608]
[1755140601281,14.5,4741.7,4740.4,0.36608]
[1755140601651,14.5,4741.7,4740.5,0.3437]
[1755140601846,14.5,4741.7,4740.6,3.231]
[1755140602077,14.5,4741.7,4740.7,5.28470714]
[1755140602452,0.4652,4742.2,4740.8,0.3437]
[1755140602971,14.5,4742.1,4740.8,0.3437]
[1755140603365,0.4923,4742.3,4740.8,0.3437]
[1755140603558,0.4923,4742.3,4740.9,0.36608]
[1755140603986,0.4652,4742.6,4740.9,0.36608]
[1755140604292,0.4652,4742.6,4741.0,0.3437]
[1755140605386,0.4923,4742.5,4741.0,0.3437]
[1755140605552,0.4905782,4742.5,4741.0,0.3437]
[1755140605751,0.4905782,4742.5,4741.1,0.23070714]
[1755140606188,0.4905782,4742.5,4741.2,0.3437]
[1755140606687,14.5,4742.4,4741.2,0.3437]
[1755140608456,0.4652,4742.9,4741.2,0.3437]
[1755140608655,0.4923,4743.1,4741.2,0.3437]
[1755140609079,14.5,4743.0,4741.3,0.0868]
[1755140609278,14.5,4743.0,4741.2,0.3437]
[1755140609486,0.4652,4742.9,4741.2,0.3437]
[1755140609658,0.9575,4742.9,4741.2,0.3437]
[1755140610081,14.5,4742.8,4741.2,0.3437]
[1755140610486,0.9575,4742.7,4741.2,0.3437]
[1755140611057,14.5,4742.8,4741.3,0.0868]
[1755140611255,14.5,4742.8,4741.4,0.3437]
[1755140612185,14.9652,4742.8,4741.4,0.3437]
[1755140614393,14.9652,4742.8,4741.5,11.43]
[1755140614590,14.5,4742.8,4741.6,15.02508]
[1755140614891,0.9575,4742.7,4741.6,14.659]
[1755140615360,14.5,4742.8,4741.6,14.659]
[1755140615565,0.9575,4742.6,4741.6,14.659]
[1755140615793,0.9575,4742.5,4741.6,14.659]
[1755140616093,0.9575,4742.4,4741.7,4.29]
[1755140616298,0.9575,4742.3,4741.7,4.29]
[1755140616507,14.5,4742.8,4741.7,4.29]
[1755140616670,14.5,4742.8,4741.6,3.229]
[1755140616671,0.9575,4742.2,4741.8,4.29]
[1755140616867,15.95,4742.8,4741.7,4.29]
[1755140617192,0.9575,4742.1,4741.7,4.29]
[1755140617492,0.9575,4742.0,4741.8,3.229]
[1755140617669,14.5,4742.8,4741.9,3.229]
[1755140617869,14.5,4742.8,4742.0,3.229]
[1755140618070,14.5,4742.8,4742.1,3.229]
[1755140618370,0.9575,4742.7,4742.1,3.229]
[1755140618773,15.95,4742.8,4742.1,3.229]
[1755140618774,0.9575,4742.6,4742.1,3.229]
[1755140619006,0.4652,4742.5,4742.1,3.229]
[1755140619165,0.9575,4742.5,4742.1,3.229]
[1755140619372,0.9575,4742.5,4740.9,4.29]
[1755140619690,0.9575,4742.4,4741.0,3.229]
[1755140619887,0.9575,4742.3,4741.0,3.229]
[1755140620089,0.9575,4742.2,4741.0,3.229]
[1755140620296,0.9575,4742.1,4741.0,3.229]
[1755140620498,15.4575,4742.0,4741.0,3.229]
[1755140620689,16.04575,4742.0,4741.0,3.229]
[1755140620877,0.9575,4741.9,4741.0,3.229]
[1755140621385,0.9575,4741.8,4741.0,3.229]
[1755140621600,0.9575,4741.7,4741.0,3.229]
[1755140622371,14.5,4741.6,4741.0,3.229]
[1755140622572,0.4652,4741.5,4741.0,3.229]
[1755140622773,0.4652,4741.5,4741.1,4.29]
[1755140622992,0.4923,4741.4,4741.1,4.29]
[1755140623308,0.9575,4741.3,4741.1,4.29]
[1755140623510,14.5,4741.4,4741.1,4.29]
[1755140623676,0.9575,4741.2,4741.1,4.29]
[1755140624014,0.9575,4741.2,4741.1,7.519]
[1755140624185,0.9575,4741.2,4741.1,3.229]
[1755140624394,0.9575,4741.2,4740.8,4.29]
[1755140624698,0.9575,4741.1,4740.9,3.229]
[1755140624903,0.9575,4741.0,4740.9,3.229]
[1755140625290,0.9575,4741.0,4740.8,4.29]
[1755140625497,14.5,4741.4,4740.9,3.229]
[1755140625698,15.95,4741.4,4740.9,3.229]
[1755140626119,0.9575,4741.3,4740.9,3.229]
[1755140626509,0.9575,4741.2,4740.8,4.29]
[1755140626705,0.9575,4741.1,4741.0,3.229]
[1755140628801,0.9575,4741.1,4739.5,4.29]
[1755140629009,0.9575,4741.0,4739.6,8.282]
[1755140629191,0.56575958,4742.9,4739.6,8.282]
[1755140629392,0.45274529,4743.1,4739.6,8.282]
[1755140629393,0.9575,4740.9,4739.7,4.29]
[1755140629603,0.9575,4740.9,4739.8,4.29]
[1755140631106,0.9575,4740.9,4739.6,8.282]
[1755140631107,0.9575,4740.9,4739.9,4.29]
[1755140632920,2.10112725,4742.8,4739.9,4.29]
[1755140633121,0.9081,4741.4,4740.0,4.6337]
[1755140633294,0.9081,4741.4,4740.1,7.519]
[1755140633790,0.4465,4741.3,4740.2,0.3437]
[1755140634105,0.4465,4741.3,4740.1,7.519]
[1755140634595,0.4436456,4741.3,4740.1,7.519]
[1755140634996,0.4616,4741.2,4740.1,7.519]
[1755140636190,0.4616,4741.2,4740.2,4.29]
[1755140636393,0.4616,4741.2,4740.3,4.29]
[1755140637529,0.4616,4741.2,4740.1,3.229]
[1755140640539,0.4465,4741.1,4740.1,3.229]
[1755140640733,0.4616,4741.0,4740.1,3.229]
[1755140640926,0.4465,4740.9,4740.1,3.229]
[1755140641126,0.4616,4740.8,4740.1,3.229]
[1755140641327,0.4616,4740.8,4739.6,5.053]
[1755140641328,0.4465,4740.7,4740.2,3.229]
[1755140641528,0.45244446,4743.1,4739.6,5.053]
[1755140641529,0.9081,4740.6,4739.6,5.053]
[1755140641731,0.9081,4740.5,4739.7,3.229]
[1755140641908,0.9081,4740.4,4739.7,3.229]
[1755140642112,0.9081,4740.3,4739.7,3.229]
[1755140642332,0.45260914,4741.6,4739.8,3.229]
[1755140642333,0.9081,4740.2,4739.8,3.229]
[1755140642529,2.10112725,4741.5,4739.8,3.229]
[1755140642740,0.9081,4740.1,4739.8,3.229]
[1755140642942,0.45260914,4741.4,4739.8,3.229]
[1755140643125,0.9081,4740.0,4739.8,3.229]
[1755140643442,19.50830382,4741.5,4739.8,3.229]
[1755140643443,0.9081,4740.3,4739.8,3.229]
[1755140643824,0.45260018,4741.8,4739.8,3.229]
[1755140643825,0.4616,4740.2,4739.8,3.229]
[1755140644023,0.9081,4740.1,4739.8,3.229]
[1755140644420,0.4616,4740.1,4739.8,3.229]
[1755140644636,0.4465,4740.4,4739.8,3.229]
[1755140645013,0.9081,4740.4,4739.8,3.229]
[1755140645457,0.9081,4740.3,4739.9,3.229]
[1755140645626,17.40717657,4740.9,4740.0,3.228]
[1755140645830,0.9081,4740.2,4740.0,3.228]
[1755140646135,0.9081,4740.1,4740.0,3.228]
[1755140647211,0.9081,4740.1,4740.0,3.229]
[1755140649452,0.9081,4740.1,4739.0,5.054]
[1755140649650,0.9081,4740.1,4739.1,3.229]
[1755140650026,0.4616,4740.1,4739.1,3.229]
[1755140650228,0.4465,4740.0,4739.1,3.229]
[1755140651230,0.4616,4739.9,4739.1,3.229]
[1755140651825,0.4465,4739.8,4739.1,3.229]
[1755140652025,0.4465,4739.8,4739.2,3.229]
[1755140652555,0.4465,4739.8,4739.3,3.229]
[1755140652851,0.9081,4739.7,4739.3,3.229]
[1755140653040,0.9081,4739.6,4739.3,3.229]
[1755140653445,0.9081,4739.6,4739.1,4.29]
[1755140653647,0.4616,4739.6,4739.2,3.229]
[1755140653955,0.4465,4739.9,4739.2,3.229]
[1755140654145,0.9081,4739.9,4739.2,3.229]
[1755140656424,0.9081,4740.9,4739.2,3.229]
[1755140656625,0.9081,4740.9,4739.3,4.7234]
[1755140656858,0.9081,4740.9,4739.4,0.3466]
[1755140657920,0.45309976,4742.3,4739.4,0.3466]
[1755140657921,17.40717657,4741.9,4739.4,0.3466]
[1755140658127,0.9081,4740.8,4739.4,0.3466]
[1755140659254,0.9081,4740.7,4739.0,5.054]
[1755140659455,17.40717657,4741.1,4739.1,3.228]
[1755140659663,0.9081,4740.6,4739.1,3.228]
[1755140659952,0.9081,4740.5,4739.1,3.228]
[1755140660158,1.74071766,4741.0,4739.1,3.228]
[1755140660451,0.9081,4740.4,4739.1,3.228]
[1755140660665,0.9081,4740.3,4739.1,3.228]
[1755140660957,0.4616,4741.0,4739.2,0.4334]
[1755140661158,0.4465,4740.6,4739.2,0.4334]
[1755140661550,0.4616,4740.9,4739.3,0.3466]
[1755140662059,0.155943,4742.8,4739.3,0.3466]
[1755140662060,0.4546,4741.4,4739.4,0.0868]
[1755140662562,0.4546,4741.4,4739.5,0.3466]